Cogmind - Beta 17 @@@ ROGUE MODE // 2026.08.20 @ 17:42:27 Player: 4R-ZE3 Result: Destroyed by G-47 Trooper with Particle Gun Performance ------------- Evolutions (0) 0 Regions Visited (2) 400 Robots Destroyed (19) 95 Value Destroyed (678) 678 Prototype IDs (0) 0 Alien Tech Used (0) 0 Bonus (25) 25 TOTAL SCORE: 1198 Bonus ------- Follower Combat Kills 25 Cogmind --------- Core Integrity 0/250 Matter 290/300 Energy 250/250 System Corruption 0% Temperature Cool (59) Movement Rolling (140) Ox4 Location -10/Mines Parts ------- > --- POWER (1) -------- Ion Engine > --- PROPULSION (2) --- Light Treads Wheel > --- UTILITY (2) ------ Disposable Heat Sink High-capacity Storage Unit > --- WEAPON (2) ------- Small Laser > --- INVENTORY (20) --- Light Ion Engine Huge Storage Unit Medium Armor Plating Medium Armor Plating Medium Armor Plating Medium Armor Plating Peak State ------------ > --- POWER ------------ Ion Engine > --- PROPULSION ------- Light Treads Light Treads > --- UTILITY ---------- Disposable Heat Sink High-capacity Storage Unit > --- WEAPON ----------- Small Laser Particle Gun > --- INVENTORY -------- Light Treads Wheel Wheel Huge Storage Unit Medium Armor Plating Medium Armor Plating Medium Armor Plating Medium Armor Plating Medium Laser Medium Laser [Rating: 10] Favorites ----------- Power Ion Engine Engine Ion Engine Propulsion Light Treads Treads Light Treads Wheel Wheel Utility High-capacity Storage Unit Device Heat Sink Storage High-capacity Storage Unit Weapon Small Laser Energy Gun Small Laser Build | -11 -10 -10 ------- Run | Yrd Mat Min Slots Evolved . | . . . Power . | . . . Propulsion . | . . . Utility . | . . . Weapon . | . . . Parts Attached 20 | 6 12 2 Power 3 | 1 2 . Engine 3 | 1 2 . Core . | . . . Reactor . | . . . Propulsion 7 | 2 3 2 Treads 5 | 2 2 1 Leg . | . . . Wheel 2 | . 1 1 Hover . | . . . Flight . | . . . Utility 5 | 1 4 . Device 3 | . 3 . Storage 2 | 1 1 . Processor . | . . . Hackware . | . . . Protection . | . . . Artifact . | . . . Weapon 5 | 2 3 . Energy Gun 5 | 2 3 . Energy Cannon . | . . . Ballistic Gun . | . . . Ballistic Cannon . | . . . Launcher . | . . . Special Weapon . | . . . Impact Weapon . | . . . Slashing Weapon . | . . . Piercing Weapon . | . . . Special Melee Weapon . | . . . Unidentified Prototypes . | . . . Parts Lost 11 | . 8 3 Power 2 | . 2 . Propulsion 4 | . 2 2 Utility 1 | . 1 . Weapon 4 | . 3 1 Highest Loss Streak 6 | . 6 2 To Critical Strikes . | . . . Average Backups 7 | 2 8 7 Power . | . . 1 Propulsion 1 | 1 2 1 Utility 4 | . 4 5 Weapon . | . . . Tool/Special . | . . . Unused Backups 6 | . . 6 Power 1 | . . 1 Propulsion . | . . . Utility 5 | . . 5 Weapon . | . . . Tool/Special . | . . . Average Slot Usage (%) 96 | . 98 90 Engine 14 | . 14 14 Treads 27 | . 27 27 Device 13 | . 13 14 Storage 14 | . 14 14 Energy Gun 25 | . 27 18 Peak Build Rating 10 | 6 10 9 Average Rating 8 | 4 8 8 On Entrance 5 | . 6 9 Avg Prop Armor Cover (%) 16 | . 16 . Naked Turns . | . . . Heaviest Build 50 | 13 50 49 Greatest Support 40 | 40 40 40 Greatest Overweight (x) 4 | . 4 4 Average Overweight (x) . | . . 1 Largest Inventory Capacity 20 | 8 20 20 Average Capacity 17 | 6 18 20 Most Carried 11 | 4 11 8 Average Carried 8 | 2 8 7 Final Capacity 20 | 8 20 20 Final Carried 8 | 3 8 6 Class Distribution -------------------- 100% | Mutant Dominant Class ---------------- Mutant | -10/Materials Mutant | -10/Mines Resources | -11 -10 -10 ----------- Run | Yrd Mat Min Matter Collected 380 | 192 183 5 Remotely . | . . . Salvage Created 739 | . 591 148 Parts 37 | . 32 5 Haulers Intercepted . | . . . Recyclers Shooed 1 | . . 1 Parts Field Recycled . | . . . Retrieved Matter . | . . . Parts Self-Destructed . | . . . Prevented . | . . . Parts Restored . | . . . Kills | -11 -10 -10 ------- Run | Yrd Mat Min Combat Hostiles Destroyed 18 | . 15 3 Guns 17 | . 14 3 Classes Destroyed 2 | . 2 . Worker 1 | . 1 . Grunt 18 | . 15 3 Best Kill Streak 4 | . 4 3 Combat Bots Only 4 | . 4 3 Max Kills in Single Turn 2 | . 2 1 Gunslinging . | . . . Exploded . | . . . Melee . | . . . Uniques/NPCs Destroyed . | . . . Combat | -11 -10 -10 -------- Run | Yrd Mat Min Hostile Shots Fired 158 | . 115 43 Missed 43 | . 30 13 Hits 115 | . 85 30 Projectile 115 | . 85 30 AOE 1 | . 1 . Critical Strikes 4 | . . 4 Damage Taken 1552 | . 1130 422 Core 265 | . 190 75 Absorbed by Shields . | . . . Core Remaining (%) 100 | 100 . . Volleys Fired 74 | . 50 24 Largest 2 | . 2 2 Hottest 105 | . 105 90 Shots Fired 124 | . 93 31 Gun 124 | . 93 31 Cannon . | . . . Launcher . | . . . Special . | . . . Kinetic . | . . . Thermal 124 | . 93 31 Explosive . | . . . Electromagnetic . | . . . Robot Hit Streak 19 | . 19 6 Robot Miss Streak 4 | . 3 4 Penetration Max . | . . . Secondary Targets 2 | . 1 1 Max Gunslinging Chain 1 | . 1 1 Shots Hit Robots 88 | . 72 16 Core Hits 38 | . 29 9 Critical Kills . | . . . Critical Parts Destroyed . | . . . Critical Strikes 5 | . 5 . Burn 5 | . 5 . Melee Attacks . | . . . Impact . | . . . Slashing . | . . . Piercing . | . . . Sneak Attacks . | . . . Combat Hostiles . | . . . Follow-up Attacks . | . . . Damage Inflicted 1196 | . 963 233 Guns 1196 | . 963 233 Cannons . | . . . Explosions . | . . . Melee . | . . . Ramming . | . . . Kinetic . | . . . Thermal 1196 | . 963 233 Explosive . | . . . Electromagnetic . | . . . Impact . | . . . Slashing . | . . . Piercing . | . . . Highest Corruption . | . . . Average Corruption . | . . . Corruption Purged . | . . . Corruption Blocked . | . . . Overload Shots . | . . . Overflow Damage . | . . . Projectiles . | . . . Explosions . | . . . Melee . | . . . Knockbacks . | . . . Impact . | . . . Kinetic . | . . . Secondary . | . . . Self-Inflicted Damage . | . . . Shots . | . . . Rammed . | . . . Targets Rammed . | . . . Kicked . | . . . Crushed . | . . . Highest Temperature 199 | . 199 197 Average Temperature 93 | . 83 125 Received Heat Transfer 906 | . 588 318 Siege Activations . | . . . Martial Activations . | . . . Shielding Activations . | . . . Robots Disrupted . | . . . Combat Hostiles . | . . . Robots Corrupted . | . . . Combat Hostiles . | . . . Parts Fried . | . . . Impact Corruptions . | . . . Robots Melted 1 | . 1 . Combat Hostiles 1 | . 1 . Parts Melted 4 | . 2 2 Heat Transferred 3247 | . 2675 572 Parts Sabotaged . | . . . Parts Stolen . | . . . Parts Stripped . | . . . Power Chain Reactions . | . . . Alert | -11 -10 -10 ------- Run | Yrd Mat Min Maximum Alert Level 1 | . 1 . Low Security (%) 94 | 100 93 100 Level 1 5 | . 6 . Level 2 . | . . . Level 3 . | . . . Level 4 . | . . . Level 5 . | . . . High Security . | . . . Max Security . | . . . Peak Influence 214 | . 214 99 Initial 78 | . . 78 Average 56 | . 59 66 Influence Increases 559 | . 458 101 Destroy 0b10 Robot/C 380 | . 300 80 Destroy 0b10 Robot/NC 5 | . 5 . Destroy Leader 80 | . 60 20 Allied During Kill 1 | . . 1 Successful Hack 18 | . 18 . Lose Combat Pursuer 75 | . 75 . Influence Decreases 530 | . 256 274 Entered New Map 124 | . . 124 Time Decay 276 | . 176 100 Lost Part 110 | . 80 30 Lost Ally 20 | . . 20 Squads Dispatched 3 | . 3 . Investigation 2 | . 2 . Extermination . | . . . Reinforcement 1 | . 1 . Assault . | . . . Garrison . | . . . Intercept . | . . . Searches Triggered . | . . . Construction Impeded . | . . . Haulers Reinforced . | . . . Active Scanning Responses . | . . . Cargo Convoy Interrupts . | . . . Stealth | -11 -10 -10 --------- Run | Yrd Mat Min Distress Signals 2 | . 2 . Communications Jammed . | . . . Distress Signals . | . . . Times Spotted 30 | . 25 5 Peak Tracking Total 7 | . 7 3 Tactical Retreats 4 | . 4 . Traps | -11 -10 -10 ------- Run | Yrd Mat Min Traps Triggered 2 | . 2 . Indirectly . | . . . Trap Hack Attempts . | . . . Triggered . | . . . Disarmed . | . . . Reprogrammed . | . . . Reused . | . . . Traps Extracted . | . . . Installed . | . . . Triggered . | . . . Machines | -11 -10 -10 ---------- Run | Yrd Mat Min Machines Disabled . | . . . Max in Single Turn . | . . . Machines Repaired . | . . . Machines Dismantled . | . . . Machines Sabotaged . | . . . Overloaded Fab Kills . | . . . Hacking | -11 -10 -10 --------- Run | Yrd Mat Min Machines Accessed 2 | . 2 . Terminals 2 | . 2 . Fabricators . | . . . Repair Stations . | . . . Recycling Units . | . . . Scanalyzers . | . . . Garrison Access . | . . . Total Hacks 10 | . 10 . Successful 4 | . 4 . Failed 6 | . 6 . Catastrophic . | . . . Database Lockouts . | . . . Manual 9 | . 9 . Terminals 10 | . 10 . Fabricators . | . . . Repair Stations . | . . . Recycling Units . | . . . Scanalyzers . | . . . Garrison Access . | . . . Terminal Hacks 2 | . 2 . Robot Analysis 2 | . 2 . Fabricator Hacks . | . . . Repair Station Hacks . | . . . Recycling Unit Hacks . | . . . Scanalyzer . | . . . Garrison Access Hacks . | . . . Unauthorized Hacks 2 | . 2 . Terminals 2 | . 2 . Botnet 2 | . 2 . Fabricators . | . . . Repair Stations . | . . . Recycling Units . | . . . Scanalyzers . | . . . Garrison Access . | . . . Data Cores Recovered . | . . . Used . | . . . Hacking Detections 2 | . 2 . Full Trace Events . | . . . Feedback Events . | . . . Feedback Blocked . | . . . Robot Schematics Acquired . | . . . Robots Built . | . . . Authchips . | . . . Time . | . . . Total Robot Build Rating . | . . . Part Schematics Acquired . | . . . Parts Built . | . . . Authchips . | . . . Time . | . . . Total Part Build Rating . | . . . Part Studies Acquired . | . . . Parts Repaired . | . . . Time . | . . . Parts Recycled . | . . . Recycled Matter . | . . . Retrieved Matter . | . . . Retrieved Components . | . . . Parts Scanalyzed . | . . . Part Schematics Acquired . | . . . Parts Damaged . | . . . Bothacking | -11 -10 -10 ------------ Run | Yrd Mat Min Used RIF Installer . | . . . Robots Hacked . | . . . Non-combat . | . . . Combat . | . . . Robot Hacks Applied . | . . . Relay Couplers Released . | . . . Fabnet Peak Effective % . | . . . Robots Rewired . | . . . Allies Hacked . | . . . Hacks Repelled . | . . . Allies | -11 -10 -10 -------- Run | Yrd Mat Min Total Allies 1 | . . 1 Largest Group 1 | . . 1 Highest-Rated Group 31 | . . 31 Highest-Rated Ally 31 | . . 31 Total Orders . | . . . Ally Attacks 6 | . . 6 Total Damage 103 | . . 103 Kills 1 | . . 1 Allies Corrupted . | . . . Allies Melted . | . . . Intel | -11 -10 -10 ------- Run | Yrd Mat Min Active Infowar (turns) . | . . . Robot Analysis Total 2 | . 2 . Derelict Logs Recovered . | . . . Drone Launches . | . . . Drone Recoveries . | . . . Exploration | -11 -10 -10 ------------- Run | Yrd Mat Min Turns Passed 1179 | 79 884 216 Spaces Moved 428 | 45 318 65 Core 5 | 5 . . Treads 406 | 40 302 64 Legs . | . . . Wheels 17 | . 16 1 Hover . | . . . Flight . | . . . Fastest Speed 50 | 50 140 140 Average Speed 213 | 147 217 238 Slowest Speed 240 | 160 240 240 Overloaded Moves . | . . . Propulsion Burnouts . | . . . Robots Hopped . | . . . Potential Cave-ins . | . . . Cave-ins Triggered . | . . . Exploration Rate (%) 25 | 4 53 20 Regions Visited 2 Branch Regions 1 Pre-discovered Areas . | . . . Known Exits Taken . | . . . Unknown Exits Taken 2 | 1 1 . Scrap Searched . | . . . Spaces Dug . | . . . Terrain Destroyed . | . . . Melee . | . . . Projectile . | . . . AOE . | . . . Terrain Rammed . | . . . Walls Destroyed . | . . . Machines Disabled . | . . . Actions | -11 -10 -10 --------- Run | Yrd Mat Min Total 566 | 55 416 95 Wait 27 | . 23 4 Move 426 | 44 317 65 Hop . | . . . Pick Up 14 | 4 10 . Fast Attach 11 | 6 5 . Attach 8 | . 6 2 Detach . | . . . Swap 2 | . 2 . Drop 4 | 1 3 . Fire 74 | . 50 24 Melee . | . . . Ram . | . . . Kick . | . . . Crush . | . . . Escape Stasis . | . . . Rewire . | . . . Trap . | . . . Miscellaneous . | . . . Route ------- -11/Scrapyard -10/Materials (discovered 2 exits: [*Mat] / [*Min]) -10/Mines (discovered 1 exit: [*Mat]) History --------- Turn | Location | Event 14 | -11/Scrapyard | Discovered new exit (range 13) 80 | -11/Scrapyard | Entered Materials 315 | -10/Materials | Build established: Mutant 327 | -10/Materials | Discovered new exit (range 6) 842 | -10/Materials | Core integrity fell below 50% 875 | -10/Materials | Lost 6 parts (1p2n3w) 930 | -10/Materials | Discovered new exit (range 14) 964 | -10/Materials | Entered Mines 967 | -10/Mines | Received a Mining Laser from a helpful Derelict 1011 | -10/Mines | Discovered new exit (range 11) 1020 | -10/Mines | Core integrity fell below 20% 1180 | -10/Mines | Destroyed by G-47 Trooper with Particle Gun Last Messages --------------- 01038_ R-06 Scavenger collects Particle Gun. 01042_ K-01 Serf collects debris. 01044_ Imp. Heat Sink melted. 01044_ G-47 Trooper destroyed. 01045_ K-01 Serf collects debris. 01047_ R-06 Scavenger collects Aluminum Leg. 01048_ K-01 Serf collects debris. 01048_ T-07 Excavator destroyed. 01051_ K-01 Serf collects debris. 01051_ R-06 Scavenger collects Wheel. 01054_ K-01 Serf collects debris. 01056_ Heat Sink melted. 01056_ G-34 Mercenary destroyed. 01058_ K-01 Serf collects debris. 01063_ Acquired 5 matter. 01064_ K-01 Serf collects debris. 01170_ Core Extractor disabled. 01172_ Critical hit (Burn: +37). 01176_ Lgt. Treads destroyed. 01178_ Critical hit (Burn: +37). Map ----- +----------------------------------------------------+ | | | | | | | | | | | | | | | | | | | | | | | | | ????????????????????????????????????????????????? | | ????????????????????????????????????????????????? | | ????????????????????????????????????????????????? | | ?????????????####?###########???????????????????? | | ?????????????# ? #???????????????????? | | ?????????????# ? #???????????????????? | | ?????????????# """ """ """ #???????????????????? | | ?????????????# """ """ """ #???????????????????? | | ?????????????# """ """ """ #???????????????????? | | ?????????????# #???????????????????? | | ?????????????# """ """ """g#???????????????????? | | ?????????????# """ """ """ #???????????????????? | | ?????????????# """ """ " " #???????????????????? | | ?????????????# g@ #???????????????????? | | ?????????????### ##############?????????????????? | | ???????????????# ######### #####?????????????? | | ???????????????# # ##????????????? | | ???????????????# # #????????????? | | ???????????????# # ####### | #???????????? | | ????????????#### # #?????### #???????????? | | ????????????# # #???????## #???????????? | | ????????????# #### ##???????## ##???????????? | | ????????????# #??# ###############????????????? | | ???????###### ####* #?????????????????? | | ???????# ##%= ####### #?????????????????? | | ???????# %%%= #?????????????????????????? | | ???????# % #?????????????????????????? | | ???????# < ### ##?????????????????????????? | | ???????# #?####??????????????????????????? | | ???????# """ #???????????????????????????????? | | ???????# """ #???????????????????????????????? | | ?????? """ #???????????????????????????????? | | ?????### #???????????????????????????????? | | ???????##########???????????????????????????????? | | ????????????????????????????????????????????????? | | ????????????????????????????????????????????????? | | ????????????????????????????????????????????????? | | ????????????????????????????????????????????????? | +----------------------------------------------------+ Best States ------------- Heat Dissipation 35 Coolant Potential 50 Energy Generation 10 Energy Capacity 250 Matter Stores 300 Matter Capacity 300 Sight Range 16 Terrain Scan Density 10 Evasion (%) 40 Recoil Reduction 2 Item Schematics ----------------- None Robot Schematics ------------------ None Fabricated ------------ Nothing Repaired ---------- Nothing Studied --------- None Alien Tech Used ----------------- None Achievements -------------- None Challenges ------------ None Game ------ Seed EtherialMiningTurbovents Manual? 0 Play Time 00:06:40 Cumulative 287.7 hours Start 2026.08.20 @ 17:36:50 End 2026.08.20 @ 17:42:27 Sessions 1 Manual Loads 0 Difficulty Rogue Special Mode None Game No. 270 Rogue 216 Adventurer 54 Explorer 0 Win Type - Total 11 Types 7/0/1/1/0/0/0/1/0/1 Lore% 77 Gallery% 66 Achievement% 61 Wizard Run 0 Options --------- Layout 1 ASCII 0 Keyboard 0 Movement Mouse Keybinds 1 Fullscreen 2 Font 32/Tamsyn Map View 50x35 Zoom Use 0% Tactical HUD 1 Map Filters NONE Filters NONE Steam 1 RUN: 7906fd44-e3c6-44a2-91cc-45a41a21f7ba